[Event "*** Titled Tuesday Blitz"]
[Site "Chess.com"]
[Date "2020.11.24"]
[Round "7"]
[White "Sebastian"]
[Black "tigra"]
[Result "1-0"]
[WhiteElo "2922"]
[BlackElo "2796"]
[TimeControl "180+1"]
[EndTime "11:35:46 PST"]
[Termination "Sebastian won by resignation"]

1. e4 {[%clk 0:03:00.9]} 1... c5 {[%clk 0:02:51.7]} 2. Nf3 {[%clk 0:03:00.6]}
2... d6 {[%clk 0:02:51.2]} 3. d4 {[%clk 0:03:00.7]} 3... cxd4 {[%clk 0:02:51.5]}
4. Nxd4 {[%clk 0:03:01.4]} 4... Nf6 {[%clk 0:02:52]} 5. Nc3 {[%clk 0:03:02.1]}
5... a6 {[%clk 0:02:52.1]} 6. Be3 {[%clk 0:03:01.7]} 6... Ng4 {[%clk 0:02:51.6]}
7. Bc1 {[%clk 0:03:01.6]} 7... Nf6 {[%clk 0:02:52.1]} 8. f3 {[%clk 0:03:01.7]}
8... e5 {[%clk 0:02:51.6]} 9. Nb3 {[%clk 0:03:01.6]} 9... Be6 {[%clk 0:02:50.4]}
10. Be3 {[%clk 0:03:01.4]} 10... h5 {[%clk 0:02:50.7]} 11. Nd5 {[%clk
0:02:59.7]} 11... Nbd7 {[%clk 0:02:48.4]} 12. c4 {[%clk 0:02:53.1]} 12... a5
{[%clk 0:02:48.7]} 13. Qd2 {[%clk 0:02:42.3]} 13... a4 {[%clk 0:02:41.8]} 14.
Nc1 {[%clk 0:02:42.2]} 14... Qb8 {[%clk 0:02:23.6]} 15. Ne2 {[%clk 0:02:32.1]}
15... b5 {[%clk 0:02:17.9]} 16. Nec3 {[%clk 0:02:27.2]} 16... b4 {[%clk
0:02:12.5]} 17. Nb5 {[%clk 0:02:27]} 17... Bxd5 {[%clk 0:02:12.5]} 18. cxd5
{[%clk 0:02:27.1]} 18... Be7 {[%clk 0:02:01.1]} 19. Qxb4 {[%clk 0:02:10.5]}
19... O-O {[%clk 0:02:00.6]} 20. Be2 {[%clk 0:01:57.4]} 20... Rc8 {[%clk
0:02:00.3]} 21. O-O {[%clk 0:01:45.8]} 21... Bd8 {[%clk 0:01:40.7]} 22. Qxd6
{[%clk 0:01:37.2]} 22... Rc2 {[%clk 0:01:36.1]} 23. Bd3 {[%clk 0:01:26]} 23...
Rxb2 {[%clk 0:01:23.1]} 24. Qxb8 {[%clk 0:01:07.6]} 24... Rxb8 {[%clk
0:01:23.9]} 25. Rfb1 {[%clk 0:01:05.6]} 25... Rxb1+ {[%clk 0:01:17.1]} 26. Rxb1
{[%clk 0:01:05.1]} 26... Bb6 {[%clk 0:01:12.7]} 27. Bxb6 {[%clk 0:00:57.3]}
27... Rxb6 {[%clk 0:01:13.6]} 28. Nc3 {[%clk 0:00:51.3]} 28... Rxb1+ {[%clk
0:01:08.4]} 29. Bxb1 {[%clk 0:00:51.1]} 29... Nb6 {[%clk 0:01:09.3]} 30. Bc2
{[%clk 0:00:50.6]} 30... a3 {[%clk 0:01:07]} 31. Nb5 {[%clk 0:00:50.2]} 31...
Nfd7 {[%clk 0:01:03.2]} 32. Nxa3 {[%clk 0:00:49]} 32... Nc5 {[%clk 0:01:04.1]}
33. Nb5 {[%clk 0:00:48.2]} 33... Kf8 {[%clk 0:01:03.5]} 34. Nc3 {[%clk
0:00:46.6]} 34... Ke7 {[%clk 0:01:03]} 35. a4 {[%clk 0:00:45.6]} 35... g6 {[%clk
0:01:02.7]} 36. Kf2 {[%clk 0:00:42.3]} 36... h4 {[%clk 0:01:01.1]} 37. g3 {[%clk
0:00:40.6]} 37... hxg3+ {[%clk 0:01:01]} 38. hxg3 {[%clk 0:00:40.8]} 38... Kd6
{[%clk 0:01:01.5]} 39. Bd1 {[%clk 0:00:35.4]} 39... Nd3+ {[%clk 0:01:00.1]} 40.
Ke3 {[%clk 0:00:31.9]} 40... Nb4 {[%clk 0:00:56.6]} 41. Be2 {[%clk 0:00:30.3]}
41... Nc2+ {[%clk 0:00:55.7]} 42. Kd2 {[%clk 0:00:29]} 42... Nd4 {[%clk
0:00:56.1]} 43. Nb5+ {[%clk 0:00:25.9]} 43... Kc5 {[%clk 0:00:52.2]} 44. Nxd4
{[%clk 0:00:25.2]} 44... exd4 {[%clk 0:00:52.5]} 45. a5 {[%clk 0:00:23.6]} 45...
Nc8 {[%clk 0:00:52.4]} 46. a6 {[%clk 0:00:20.4]} 46... f5 {[%clk 0:00:52.6]} 47.
Bd3 {[%clk 0:00:18.6]} 47... fxe4 {[%clk 0:00:49.7]} 48. fxe4 {[%clk 0:00:18.7]}
48... g5 {[%clk 0:00:50.6]} 49. Be2 {[%clk 0:00:14.6]} 49... Kd6 {[%clk
0:00:47.4]} 50. Kd3 {[%clk 0:00:13.4]} 50... Ke5 {[%clk 0:00:45.9]} 51. Bg4
{[%clk 0:00:12.1]} 51... Na7 {[%clk 0:00:44.8]} 52. Bd7 {[%clk 0:00:12]} 52...
Kd6 {[%clk 0:00:43.8]} 53. Bg4 {[%clk 0:00:10.5]} 53... Ke5 {[%clk 0:00:43.3]}
54. Bd7 {[%clk 0:00:06.8]} 54... Kd6 {[%clk 0:00:43.1]} 55. Bf5 {[%clk
0:00:07.5]} 55... Kc5 {[%clk 0:00:41.4]} 56. Bh3 {[%clk 0:00:04.5]} 56... Nb5
{[%clk 0:00:39.8]} 57. Bd7 {[%clk 0:00:03.4]} 57... Na7 {[%clk 0:00:38.9]} 58.
Ba4 {[%clk 0:00:04.1]} 58... Kb4 {[%clk 0:00:38.2]} 59. Bd1 {[%clk 0:00:03.3]}
59... Kc5 {[%clk 0:00:37.9]} 60. Ke2 {[%clk 0:00:03.4]} 60... Nb5 {[%clk
0:00:35.5]} 61. Kf3 {[%clk 0:00:03.3]} 61... d3 {[%clk 0:00:32.5]} 62. Ke3
{[%clk 0:00:03]} 62... Kc4 {[%clk 0:00:33.1]} 63. d6 {[%clk 0:00:03]} 63... Nxd6
{[%clk 0:00:25.6]} 64. a7 {[%clk 0:00:03.2]} 64... Kc3 {[%clk 0:00:26.5]} 65.
a8=Q {[%clk 0:00:03.4]} 65... Nc4+ {[%clk 0:00:27.4]} 1-0

[Event "*** Titled Tuesday Blitz"]
[Site "Chess.com"]
[Date "2020.11.24"]
[Round "7"]
[White "GM_Levan_Pantsulaia"]
[Black "xberli"]
[Result "0-1"]
[WhiteElo "2806"]
[BlackElo "2585"]
[TimeControl "180+1"]
[EndTime "11:35:49 PST"]
[Termination "xberli won on time"]

1. g3 {[%clk 0:03:00.9]} 1... Nf6 {[%clk 0:02:59.4]} 2. Bg2 {[%clk 0:03:01.1]}
2... e6 {[%clk 0:02:59.1]} 3. Nf3 {[%clk 0:03:00.2]} 3... d5 {[%clk 0:02:58.9]}
4. O-O {[%clk 0:03:00.8]} 4... Be7 {[%clk 0:02:59.8]} 5. d3 {[%clk 0:03:00.8]}
5... O-O {[%clk 0:03:00.7]} 6. Nbd2 {[%clk 0:03:01.3]} 6... a5 {[%clk
0:03:01.3]} 7. e4 {[%clk 0:03:00.9]} 7... c5 {[%clk 0:03:00.1]} 8. Re1 {[%clk
0:02:45.3]} 8... Nc6 {[%clk 0:02:59.2]} 9. a4 {[%clk 0:02:42.2]} 9... b6 {[%clk
0:02:53.6]} 10. e5 {[%clk 0:02:40.1]} 10... Nd7 {[%clk 0:02:51.4]} 11. Nf1
{[%clk 0:02:40.7]} 11... Ba6 {[%clk 0:02:37.5]} 12. h4 {[%clk 0:02:39.8]} 12...
Rc8 {[%clk 0:02:33.4]} 13. h5 {[%clk 0:02:37.8]} 13... Nd4 {[%clk 0:02:32]} 14.
N1h2 {[%clk 0:02:32.1]} 14... Qc7 {[%clk 0:02:20.2]} 15. Bf4 {[%clk 0:02:27]}
15... b5 {[%clk 0:02:09.3]} 16. axb5 {[%clk 0:02:26.2]} 16... Bxb5 {[%clk
0:02:10.2]} 17. h6 {[%clk 0:02:21.1]} 17... g6 {[%clk 0:02:08.3]} 18. Ng4 {[%clk
0:02:20.8]} 18... Nf5 {[%clk 0:01:58.9]} 19. Bg5 {[%clk 0:02:12.9]} 19... Kh8
{[%clk 0:01:41.6]} 20. Qd2 {[%clk 0:02:08.2]} 20... Ra8 {[%clk 0:01:35.4]} 21.
Bxe7 {[%clk 0:02:07.1]} 21... Nxe7 {[%clk 0:01:36.3]} 22. Ng5 {[%clk 0:02:07.1]}
22... Nf5 {[%clk 0:01:31.7]} 23. c4 {[%clk 0:01:48.2]} 23... Bc6 {[%clk
0:01:17.8]} 24. cxd5 {[%clk 0:01:47.4]} 24... Bxd5 {[%clk 0:01:17.4]} 25. Bxd5
{[%clk 0:01:46.6]} 25... exd5 {[%clk 0:01:18.3]} 26. e6 {[%clk 0:01:47.1]} 26...
f6 {[%clk 0:01:10.8]} 27. exd7 {[%clk 0:01:31.2]} 27... fxg5 {[%clk 0:01:07.8]}
28. Ne5 {[%clk 0:01:18.8]} 28... Nd4 {[%clk 0:00:54.9]} 29. Qxg5 {[%clk
0:01:17.2]} 29... Qd6 {[%clk 0:00:47.1]} 30. Rxa5 {[%clk 0:01:09.2]} 30... Rxa5
{[%clk 0:00:37.9]} 31. Nf7+ {[%clk 0:00:41.7]} 31... Kg8 {[%clk 0:00:37.5]} 32.
Nxd6 {[%clk 0:00:41.8]} 32... Nf3+ {[%clk 0:00:37.1]} 33. Kg2 {[%clk 0:00:42.3]}
33... Nxg5 {[%clk 0:00:38]} 34. Re7 {[%clk 0:00:35.9]} 34... Raa8 {[%clk
0:00:35]} 35. Rg7+ {[%clk 0:00:30.4]} 35... Kh8 {[%clk 0:00:34.7]} 36. f4 {[%clk
0:00:30.6]} 36... Ne6 {[%clk 0:00:20.9]} 37. Re7 {[%clk 0:00:29.1]} 37... Nd8
{[%clk 0:00:15]} 38. Kf3 {[%clk 0:00:20.1]} 38... c4 {[%clk 0:00:14.3]} 39. dxc4
{[%clk 0:00:18.7]} 39... dxc4 {[%clk 0:00:15.2]} 40. Ke4 {[%clk 0:00:18.5]}
40... Ra6 {[%clk 0:00:13.5]} 41. Nxc4 {[%clk 0:00:13.6]} 41... Re6+ {[%clk
0:00:12.9]} 42. Rxe6 {[%clk 0:00:13.9]} 42... Nxe6 {[%clk 0:00:13.8]} 43. Ke5
{[%clk 0:00:14.5]} 43... Nd8 {[%clk 0:00:13.1]} 44. Nd6 {[%clk 0:00:13.5]} 44...
Kg8 {[%clk 0:00:12.6]} 45. b4 {[%clk 0:00:13.3]} 45... Nf7+ {[%clk 0:00:12.4]}
46. Ke6 {[%clk 0:00:12.5]} 46... Nd8+ {[%clk 0:00:10]} 47. Kd5 {[%clk
0:00:10.8]} 47... Rf6 {[%clk 0:00:09]} 48. b5 {[%clk 0:00:10.8]} 48... Kf8
{[%clk 0:00:09.1]} 49. Nc8 {[%clk 0:00:08.4]} 49... Rf5+ {[%clk 0:00:08.2]} 50.
Kc4 {[%clk 0:00:06.2]} 50... g5 {[%clk 0:00:08.4]} 51. b6 {[%clk 0:00:04.2]}
51... gxf4 {[%clk 0:00:08.2]} 52. gxf4 {[%clk 0:00:05.1]} 52... Rxf4+ {[%clk
0:00:09.1]} 53. Kc5 {[%clk 0:00:05.9]} 53... Rf6 {[%clk 0:00:09.2]} 54. Kb5
{[%clk 0:00:03.9]} 54... Rxh6 {[%clk 0:00:09.2]} 55. Ka6 {[%clk 0:00:03.1]}
55... Rf6 {[%clk 0:00:08.7]} 56. Ka7 {[%clk 0:00:03.3]} 56... Rf7 {[%clk
0:00:07.7]} 0-1

[Event "*** Titled Tuesday Blitz"]
[Site "Chess.com"]
[Date "2020.11.24"]
[Round "7"]
[White "Smile2005"]
[Black "skoularikii"]
[Result "1-0"]
[WhiteElo "2361"]
[BlackElo "2462"]
[TimeControl "180+1"]
[EndTime "11:35:50 PST"]
[Termination "Smile2005 won by resignation"]

1. Nf3 {[%clk 0:02:56.3]} 1... d5 {[%clk 0:02:29.1]} 2. g3 {[%clk 0:02:56.5]}
2... Nf6 {[%clk 0:02:28]} 3. Bg2 {[%clk 0:02:57.4]} 3... g6 {[%clk 0:02:27]} 4.
O-O {[%clk 0:02:55.2]} 4... Bg7 {[%clk 0:02:27.2]} 5. d3 {[%clk 0:02:55.1]} 5...
O-O {[%clk 0:02:27.1]} 6. Nc3 {[%clk 0:02:55.4]} 6... d4 {[%clk 0:02:26.2]} 7.
Na4 {[%clk 0:02:54.3]} 7... Nc6 {[%clk 0:02:21.5]} 8. c4 {[%clk 0:02:54.6]} 8...
dxc3 {[%clk 0:02:20.8]} 9. Nxc3 {[%clk 0:02:54.3]} 9... e5 {[%clk 0:02:21]} 10.
a3 {[%clk 0:02:52.3]} 10... h6 {[%clk 0:02:06.1]} 11. Bd2 {[%clk 0:02:49.9]}
11... a5 {[%clk 0:02:05.2]} 12. b3 {[%clk 0:02:49.7]} 12... Be6 {[%clk
0:02:04.3]} 13. Rc1 {[%clk 0:02:48.9]} 13... Qe7 {[%clk 0:02:00.9]} 14. Nb5
{[%clk 0:02:47]} 14... Bd5 {[%clk 0:01:55.2]} 15. Bc3 {[%clk 0:02:45.5]} 15...
Rfc8 {[%clk 0:01:49.9]} 16. Nd2 {[%clk 0:02:45.2]} 16... Nd4 {[%clk 0:01:31.9]}
17. Nxd4 {[%clk 0:02:42.1]} 17... Bxg2 {[%clk 0:01:28.4]} 18. Kxg2 {[%clk
0:02:34.7]} 18... exd4 {[%clk 0:01:27.7]} 19. Bxd4 {[%clk 0:02:34.8]} 19... Qxa3
{[%clk 0:00:41.4]} 20. Bxf6 {[%clk 0:02:31.6]} 20... Bxf6 {[%clk 0:00:40.7]} 21.
Ne4 {[%clk 0:02:30.5]} 21... Bd4 {[%clk 0:00:36.4]} 22. e3 {[%clk 0:02:29.2]}
22... Bg7 {[%clk 0:00:35.6]} 23. d4 {[%clk 0:02:28]} 23... Qe7 {[%clk
0:00:27.5]} 24. Nc5 {[%clk 0:02:27.1]} 24... b6 {[%clk 0:00:27.3]} 25. Nd3
{[%clk 0:02:26.8]} 25... c5 {[%clk 0:00:27.5]} 26. dxc5 {[%clk 0:02:26.3]} 26...
Rd8 {[%clk 0:00:25.4]} 27. Qf3 {[%clk 0:01:43.3]} 27... Rac8 {[%clk 0:00:18.7]}
28. cxb6 {[%clk 0:01:41.2]} 28... Rxc1 {[%clk 0:00:07.9]} 29. Nxc1 {[%clk
0:01:41.8]} 29... Qc5 {[%clk 0:00:07]} 30. Rd1 {[%clk 0:01:39.8]} 30... Rxd1
{[%clk 0:00:05.4]} 31. Qxd1 {[%clk 0:01:40.7]} 31... Qxb6 {[%clk 0:00:05.1]} 32.
Qd5 {[%clk 0:01:39]} 32... Qc7 {[%clk 0:00:04.7]} 33. Nd3 {[%clk 0:01:38.5]}
33... Kh7 {[%clk 0:00:05.1]} 34. Nf4 {[%clk 0:01:33.6]} 34... h5 {[%clk
0:00:03.4]} 35. h4 {[%clk 0:01:33.4]} 35... Qe7 {[%clk 0:00:03.1]} 36. Qxa5
{[%clk 0:01:26.7]} 36... Qe4+ {[%clk 0:00:03.4]} 37. Kh2 {[%clk 0:01:27]} 37...
Qc2 {[%clk 0:00:03.9]} 38. Qe1 {[%clk 0:01:16.8]} 38... Qxb3 {[%clk 0:00:03.9]}
39. Qe2 {[%clk 0:01:17.1]} 39... Bc3 {[%clk 0:00:03.5]} 40. Qf3 {[%clk
0:01:14.9]} 40... Kg7 {[%clk 0:00:03.8]} 41. g4 {[%clk 0:01:12.7]} 41... hxg4
{[%clk 0:00:03.2]} 42. Qxg4 {[%clk 0:01:12.9]} 42... Qc2 {[%clk 0:00:02.8]} 43.
Kg2 {[%clk 0:01:11.9]} 43... Kf8 {[%clk 0:00:03]} 44. Qc8+ {[%clk 0:01:11.2]}
44... Kg7 {[%clk 0:00:03.4]} 45. Qg4 {[%clk 0:01:10]} 45... Be1 {[%clk
0:00:03.5]} 46. Qg3 {[%clk 0:01:03.6]} 46... Qc6+ {[%clk 0:00:03.1]} 47. Qf3
{[%clk 0:01:03.7]} 47... Qc2 {[%clk 0:00:03.3]} 48. h5 {[%clk 0:01:01.1]} 48...
g5 {[%clk 0:00:03.2]} 49. Ne2 {[%clk 0:00:48.2]} 49... f5 {[%clk 0:00:03.1]} 50.
Nd4 {[%clk 0:00:48.1]} 50... Qd2 {[%clk 0:00:03.1]} 51. Nxf5+ {[%clk 0:00:47.7]}
51... Kf6 {[%clk 0:00:03.3]} 52. Ng3+ {[%clk 0:00:46.6]} 52... Kg7 {[%clk
0:00:03.6]} 53. Nf5+ {[%clk 0:00:45.1]} 53... Kf6 {[%clk 0:00:03.7]} 54. h6
{[%clk 0:00:45.5]} 54... Kg6 {[%clk 0:00:03.8]} 55. e4 {[%clk 0:00:38.1]} 55...
Qd7 {[%clk 0:00:03.4]} 56. Qg3 {[%clk 0:00:31.3]} 56... Qe6 {[%clk 0:00:03.4]}
57. f3 {[%clk 0:00:29]} 57... Qf6 {[%clk 0:00:02.8]} 58. Qxe1 {[%clk 0:00:28.2]}
1-0

[Event "*** Titled Tuesday Blitz"]
[Site "Chess.com"]
[Date "2020.11.24"]
[Round "7"]
[White "Ranindu2003"]
[Black "mr_gustavo"]
[Result "1-0"]
[WhiteElo "2555"]
[BlackElo "2394"]
[TimeControl "180+1"]
[EndTime "11:35:54 PST"]
[Termination "Ranindu2003 won on time"]

1. e4 {[%clk 0:03:00.6]} 1... c5 {[%clk 0:02:59.2]} 2. Nf3 {[%clk 0:03:00.8]}
2... d6 {[%clk 0:02:55.1]} 3. d4 {[%clk 0:03:01]} 3... cxd4 {[%clk 0:02:56]} 4.
Nxd4 {[%clk 0:03:01.8]} 4... Nf6 {[%clk 0:02:56.1]} 5. Nc3 {[%clk 0:03:02.4]}
5... a6 {[%clk 0:02:56.1]} 6. h3 {[%clk 0:03:03]} 6... e5 {[%clk 0:02:54]} 7.
Nb3 {[%clk 0:03:03.6]} 7... Be7 {[%clk 0:02:48.2]} 8. g4 {[%clk 0:03:02.9]} 8...
b5 {[%clk 0:02:44.6]} 9. g5 {[%clk 0:03:01.7]} 9... Nfd7 {[%clk 0:02:44.3]} 10.
h4 {[%clk 0:03:00.8]} 10... Bb7 {[%clk 0:02:43.8]} 11. Bg2 {[%clk 0:02:59.2]}
11... Nc6 {[%clk 0:02:42.8]} 12. Be3 {[%clk 0:02:58]} 12... Nc5 {[%clk
0:02:21.8]} 13. Nd5 {[%clk 0:02:53.1]} 13... Rc8 {[%clk 0:02:02.8]} 14. Qd2
{[%clk 0:02:34]} 14... a5 {[%clk 0:01:36.4]} 15. Rd1 {[%clk 0:02:28.1]} 15... a4
{[%clk 0:01:25.3]} 16. Nxc5 {[%clk 0:02:13.6]} 16... dxc5 {[%clk 0:01:26.2]} 17.
Bh3 {[%clk 0:01:58.8]} 17... Rb8 {[%clk 0:01:03.5]} 18. Qe2 {[%clk 0:01:57.5]}
18... Nd4 {[%clk 0:01:02.8]} 19. Bxd4 {[%clk 0:01:43.3]} 19... cxd4 {[%clk
0:01:03.7]} 20. Qxb5+ {[%clk 0:01:40.3]} 20... Kf8 {[%clk 0:01:03.8]} 21. Nb6
{[%clk 0:01:21.2]} 21... Bxe4 {[%clk 0:00:51.7]} 22. Nd7+ {[%clk 0:01:20.3]}
22... Kg8 {[%clk 0:00:50.7]} 23. Nxb8 {[%clk 0:01:20.5]} 23... Bxh1 {[%clk
0:00:49.5]} 24. Qxe5 {[%clk 0:01:13.8]} 24... h6 {[%clk 0:00:13.4]} 25. Rxd4
{[%clk 0:01:09.3]} 25... Qe8 {[%clk 0:00:13.5]} 26. Kf1 {[%clk 0:00:52]} 26...
hxg5 {[%clk 0:00:12.2]} 27. Bd7 {[%clk 0:00:47.2]} 27... Qf8 {[%clk 0:00:08.8]}
28. Bb5 {[%clk 0:00:32.5]} 28... Rxh4 {[%clk 0:00:06.3]} 29. Nd7 {[%clk
0:00:31.9]} 29... Qd8 {[%clk 0:00:02.5]} 30. Nf6+ {[%clk 0:00:28.6]} 30... gxf6
{[%clk 0:00:02.9]} 31. Rxd8+ {[%clk 0:00:28.3]} 31... Bxd8 {[%clk 0:00:03.8]}
32. Qe8+ {[%clk 0:00:28.4]} 32... Kg7 {[%clk 0:00:04]} 33. Qxd8 {[%clk
0:00:26.1]} 33... Bf3 {[%clk 0:00:04.3]} 34. Ke1 {[%clk 0:00:21.9]} 34... Rh1+
{[%clk 0:00:04.3]} 35. Bf1 {[%clk 0:00:21.5]} 35... Bg2 {[%clk 0:00:04.7]} 36.
Qd3 {[%clk 0:00:20]} 36... Bxf1 {[%clk 0:00:04.7]} 37. Qxf1 {[%clk 0:00:20.2]}
37... Rxf1+ {[%clk 0:00:04.1]} 38. Kxf1 {[%clk 0:00:21.1]} 38... f5 {[%clk
0:00:03.7]} 39. b3 {[%clk 0:00:19]} 39... axb3 {[%clk 0:00:03.7]} 40. cxb3
{[%clk 0:00:19.1]} 40... Kf6 {[%clk 0:00:04.6]} 41. Ke2 {[%clk 0:00:16.9]} 41...
Ke5 {[%clk 0:00:04.8]} 42. Ke3 {[%clk 0:00:17.3]} 42... Kd5 {[%clk 0:00:04.7]}
43. a4 {[%clk 0:00:16.4]} 43... f4+ {[%clk 0:00:03.6]} 44. Kf3 {[%clk
0:00:16.3]} 44... f5 {[%clk 0:00:04.5]} 45. b4 {[%clk 0:00:13.2]} 45... Kc4
{[%clk 0:00:03.9]} 46. b5 {[%clk 0:00:13.3]} 46... Kc5 {[%clk 0:00:04.4]} 47.
Ke2 {[%clk 0:00:13.4]} 47... Kb6 {[%clk 0:00:04.4]} 48. Kd3 {[%clk 0:00:13.5]}
48... g4 {[%clk 0:00:03.9]} 49. Ke2 {[%clk 0:00:13.5]} 49... g3 {[%clk
0:00:03.6]} 50. Kf1 {[%clk 0:00:14]} 50... Ka5 {[%clk 0:00:01]} 51. Kg2 {[%clk
0:00:13.6]} 51... Kb6 {[%clk 0:00:01.2]} 52. fxg3 {[%clk 0:00:13.2]} 52... fxg3
{[%clk 0:00:02.1]} 53. Kxg3 {[%clk 0:00:14.1]} 53... Ka5 {[%clk 0:00:03]} 54.
Kf4 {[%clk 0:00:14.7]} 54... Kxa4 {[%clk 0:00:03.9]} 55. b6 {[%clk 0:00:15.2]}
55... Kb5 {[%clk 0:00:04.8]} 56. b7 {[%clk 0:00:15.7]} 56... Ka6 {[%clk
0:00:05.2]} 57. b8=Q {[%clk 0:00:16.3]} 57... Ka5 {[%clk 0:00:06.1]} 58. Kxf5
{[%clk 0:00:16.1]} 58... Ka4 {[%clk 0:00:07]} 59. Ke4 {[%clk 0:00:16.7]} 1-0

[Event "*** Titled Tuesday Blitz"]
[Site "Chess.com"]
[Date "2020.11.24"]
[Round "7"]
[White "PlotnikovPavel"]
[Black "VinzentSpitzl"]
[Result "1/2-1/2"]
[WhiteElo "2481"]
[BlackElo "2369"]
[TimeControl "180+1"]
[EndTime "11:35:54 PST"]
[Termination "Game drawn by agreement"]

1. e4 {[%clk 0:03:00.9]} 1... c5 {[%clk 0:02:59]} 2. Nc3 {[%clk 0:02:59.4]} 2...
Nc6 {[%clk 0:02:58.8]} 3. Bb5 {[%clk 0:02:55.3]} 3... Nd4 {[%clk 0:02:57.7]} 4.
Nf3 {[%clk 0:02:54.6]} 4... Nxb5 {[%clk 0:02:55.5]} 5. Nxb5 {[%clk 0:02:55.5]}
5... d6 {[%clk 0:02:54.9]} 6. d4 {[%clk 0:02:53.9]} 6... a6 {[%clk 0:02:49.2]}
7. Nc3 {[%clk 0:02:53.8]} 7... cxd4 {[%clk 0:02:49.6]} 8. Qxd4 {[%clk
0:02:54.7]} 8... e5 {[%clk 0:02:36.8]} 9. Qd3 {[%clk 0:02:53]} 9... h6 {[%clk
0:02:36.3]} 10. O-O {[%clk 0:02:53.1]} 10... Nf6 {[%clk 0:02:36.3]} 11. Be3
{[%clk 0:02:52.8]} 11... Be7 {[%clk 0:02:34.8]} 12. h3 {[%clk 0:02:52.6]} 12...
Be6 {[%clk 0:02:34.4]} 13. Rad1 {[%clk 0:02:52.2]} 13... O-O {[%clk 0:02:32.6]}
14. Nh4 {[%clk 0:02:46.4]} 14... Qc7 {[%clk 0:02:27.2]} 15. Nf5 {[%clk
0:02:46.2]} 15... Bxf5 {[%clk 0:02:20.2]} 16. exf5 {[%clk 0:02:47.1]} 16... Rac8
{[%clk 0:02:20.2]} 17. f4 {[%clk 0:02:38]} 17... b5 {[%clk 0:01:49.9]} 18. Rd2
{[%clk 0:02:33]} 18... Rfe8 {[%clk 0:01:39.3]} 19. Qe2 {[%clk 0:02:21.4]} 19...
d5 {[%clk 0:01:32.4]} 20. Nxd5 {[%clk 0:02:18.9]} 20... Nxd5 {[%clk 0:01:32]}
21. Rxd5 {[%clk 0:02:19.8]} 21... exf4 {[%clk 0:01:30.5]} 22. Bxf4 {[%clk
0:02:17.5]} 22... Qxc2 {[%clk 0:01:30.2]} 23. Qxc2 {[%clk 0:02:17.6]} 23... Rxc2
{[%clk 0:01:30.9]} 24. Re5 {[%clk 0:02:15]} 24... Bc5+ {[%clk 0:01:22.3]} 25.
Kh2 {[%clk 0:02:11.2]} 25... Rxe5 {[%clk 0:01:14.6]} 26. Bxe5 {[%clk 0:02:12.1]}
26... f6 {[%clk 0:01:15.1]} 27. Bf4 {[%clk 0:01:54.7]} 27... Rxb2 {[%clk
0:01:13.1]} 28. Rc1 {[%clk 0:01:54.3]} 28... Bd4 {[%clk 0:01:08.7]} 29. a4
{[%clk 0:01:48.3]} 29... bxa4 {[%clk 0:01:03.7]} 30. Rc4 {[%clk 0:01:48.6]}
30... Be5 {[%clk 0:00:39.1]} 31. Bxe5 {[%clk 0:01:47.1]} 31... fxe5 {[%clk
0:00:40]} 32. Rxa4 {[%clk 0:01:47.8]} 32... Rb6 {[%clk 0:00:39.9]} 33. Ra5
{[%clk 0:01:34.4]} 33... Kf7 {[%clk 0:00:29.8]} 34. Rxe5 {[%clk 0:01:31.7]}
34... Rb5 {[%clk 0:00:30.1]} 35. Re6 {[%clk 0:01:31]} 35... Rxf5 {[%clk
0:00:26.5]} 36. Rxa6 {[%clk 0:01:30.1]} 36... Rf6 {[%clk 0:00:26.7]} 37. Ra7+
{[%clk 0:01:29.9]} 37... Kg6 {[%clk 0:00:26.7]} 38. Kg3 {[%clk 0:01:29.1]} 38...
Re6 {[%clk 0:00:26.8]} 39. Kf3 {[%clk 0:01:28.1]} 39... Rf6+ {[%clk 0:00:25.3]}
40. Kg4 {[%clk 0:01:23]} 40... Rb6 {[%clk 0:00:24.8]} 41. Ra4 {[%clk 0:01:21.9]}
41... Rc6 {[%clk 0:00:24.6]} 42. Kf4 {[%clk 0:01:19.9]} 42... Rb6 {[%clk
0:00:24.1]} 43. g3 {[%clk 0:01:19.5]} 43... h5 {[%clk 0:00:23.7]} 44. h4 {[%clk
0:01:17.2]} 44... Rf6+ {[%clk 0:00:23.5]} 45. Ke3 {[%clk 0:01:16.4]} 45... Re6+
{[%clk 0:00:23.6]} 46. Kf3 {[%clk 0:01:16.8]} 46... Rb6 {[%clk 0:00:23.9]} 47.
Ra5 {[%clk 0:01:14.5]} 47... Rf6+ {[%clk 0:00:22.6]} 48. Kg2 {[%clk 0:01:14.6]}
48... Rb6 {[%clk 0:00:22.5]} 49. Rg5+ {[%clk 0:01:14]} 49... Kh6 {[%clk
0:00:22.8]} 50. Re5 {[%clk 0:01:14]} 50... g6 {[%clk 0:00:22.5]} 51. Re7 {[%clk
0:01:12.5]} 51... Rc6 {[%clk 0:00:22.5]} 52. Kh3 {[%clk 0:01:12.7]} 52... Rb6
{[%clk 0:00:22.7]} 53. Rc7 {[%clk 0:01:11.9]} 53... Rd6 {[%clk 0:00:22.7]} 54.
Rc3 {[%clk 0:01:10.5]} 54... Rb6 {[%clk 0:00:22.8]} 55. g4 {[%clk 0:01:10.6]}
55... hxg4+ {[%clk 0:00:22.6]} 56. Kxg4 {[%clk 0:01:11.5]} 56... Rb4+ {[%clk
0:00:23]} 57. Kg3 {[%clk 0:01:12.4]} 57... Rb5 {[%clk 0:00:23.3]} 58. Rc6 {[%clk
0:01:11.7]} 58... Kh5 {[%clk 0:00:21.5]} 59. Rc3 {[%clk 0:01:07.4]} 59... Rd5
{[%clk 0:00:21]} 60. Re3 {[%clk 0:01:06.8]} 60... Rb5 {[%clk 0:00:20.8]} 61. Re8
{[%clk 0:01:00.8]} 61... Rb3+ {[%clk 0:00:19]} 62. Kf4 {[%clk 0:01:01.1]} 62...
Rb4+ {[%clk 0:00:18.1]} 63. Kg3 {[%clk 0:01:01.2]} 63... Rb3+ {[%clk 0:00:18.3]}
64. Kf4 {[%clk 0:01:01.5]} 64... Rb4+ {[%clk 0:00:18.5]} 65. Kg3 {[%clk
0:00:52.8]} 65... Rg4+ {[%clk 0:00:18.5]} 66. Kf3 {[%clk 0:00:48.3]} 66... Rxh4
{[%clk 0:00:18.4]} 67. Kg3 {[%clk 0:00:43]} 67... Ra4 {[%clk 0:00:17.6]} 68. Re3
{[%clk 0:00:42]} 68... Kg5 {[%clk 0:00:15.2]} 69. Rb3 {[%clk 0:00:42]} 69... Ra5
{[%clk 0:00:15.1]} 70. Rc3 {[%clk 0:00:40.7]} 70... Rf5 {[%clk 0:00:15.5]} 71.
Re3 {[%clk 0:00:40.9]} 71... Kh5 {[%clk 0:00:15.6]} 1/2-1/2